Workbook

Sheet Sheet
A1: IDENTITY: | K1: Hero Name | BE1: NPC
A4: NAME: | K4: Real Name | BD4: SIDE | BH4: G
A7: SEX: | H7: M | AJ7: EXP VALUE: | AR7: =(W47+Y56)*(BH7*2) -> 98 | BD7: LEVEL | BH7: 1
A10: AGE: | E10: 24 | AJ10: TRAINING:
A13: POWERS:
A32: WEIGHT | G32: 100 | Q32: BASIC HITS | Y32: =ROUNDUP(G32/50,0) -> 2
A35: AGL MOD* | I35: =VLOOKUP(G32,hthb,4,TRUE) -> 2 | Q35: STR | W35: 11 | AA35: =W35 -> 11
A38: END | G38: 11 | K38: =G38 -> 11 | Q38: AGL | W38: 11 | AA38: =W38+I35 -> 13
A41: INT | G41: 11 | K41: =G41 -> 11 | Q41: CHA | W41: 11 | AA41: =W41 -> 11
A44: ST | C44: =VLOOKUP(AA35,statc,4,TRUE) -> 1 | I44: EN | K44: =VLOOKUP(K38,statc,5,TRUE) -> 1 | Q44: AG | S44: =VLOOKUP(AA38,statc,6,TRUE) -> 1.3 | Y44: IN | AA44: =VLOOKUP(K41,statc,7,TRUE) -> 1
A47: HIT MOD | G47: =C44*K44*S44*AA44 -> 1.3 | O47: HIT POINTS | W47: =ROUNDUP(Y32*G47,0) -> 3
A50: REACTONS FROM: | M50: GOOD | Q50: =VLOOKUP(AA41,chab,4)*VLOOKUP(BH4,GEB,2,FALSE) -> 0 | X50: EVIL | AB50: =Q50*-1 -> 0
A53: DMG MOD | K53: =VLOOKUP(AA38,STATB,9,TRUE)+VLOOKUP(K41,STATB,11,TRUE) -> 1 | R53: HEAL RATE | Y53: =VLOOKUP(K38,STATB,8,TRUE)*Y32 -> 0.5
A56: ACCURACY | K56: =VLOOKUP(AA38,STATB,10,TRUE) -> 1 | R56: POWER | Y56: =AA35+K38+AA38+K41 -> 46
A59: CARRY CAP | H59: =ROUND((((AA35/10)^3)+(K38/10))*(G32/2),0) -> 122 | T59: BASIC HTH | AB59: =VLOOKUP(H59,hthc,5,TRUE) -> 1d4
A62: MOVE RATES | I62: =AA35+K38+AA38 -> 35
A65: DET HIDDEN | K65: =VLOOKUP(K41,STATB,12,TRUE) -> 8 | N65: % | Q65: DET DANGER | AA65: =VLOOKUP(K41,STATB,13,TRUE) -> 12 | AD65: %
A68: INVENT PTS | K68: =(K41/10)*BH7 -> 1.1 | Q68: INVENT % | AA68: =K41*3 -> 33 | AD68: %
A71: JUMP RATE | H71: =H59/100 -> 1.22 | Q71: JUMP DUR. | X71: =(H59/G32) -> 1.22
A74: JUMP HEIGHT | I74: =H71*(X71/4) -> 0.3721
A77: CASH
A80: LEGAL STATUS
A85: SECURITY CLEARANCE
A90: KNOWLEDGE AREAS
A97: INVENTIONS
A107: CREATOR: | Y107: ART:

Sheet PRINT SHEET
A2: CHARACTER RECORD SHEET
A5: IDENTITY: | H5: =Sheet!K1 -> Hero Name | AJ5: SIDE: | AN5: =VLOOKUP(Sheet!BH4,Cha!I2:K7,3,FALSE) -> GOOD
A8: NAME: | G8: =Sheet!K4 -> Real Name | AJ8: SEX: | AN8: =VLOOKUP(Sheet!H7,Cha!I2:K7,3,FALSE) -> MALE
A11: EXPERIENCE: | AJ11: LEVEL: | AO11: =Sheet!BH7 -> 1 | AW11: AGE: | BA11: =Sheet!E10 -> 24
A14: POWERS: | AJ14: TRAINING:
A17: =Sheet!A16 -> 0
A18: =Sheet!A17 -> 0
A19: =Sheet!A18 -> 0
A20: =Sheet!A19 -> 0
A21: =Sheet!A20 -> 0
A22: =Sheet!A21 -> 0
A23: =Sheet!A22 -> 0
A24: =Sheet!A23 -> 0
A25: =Sheet!A24 -> 0
A26: =Sheet!A25 -> 0
A27: =Sheet!A26 -> 0
A28: =Sheet!A27 -> 0
A29: =Sheet!A28 -> 0
A30: =Sheet!A29 -> 0
A31: =Sheet!A30 -> 0
A33: WEIGHT: | G33: =Sheet!G32 -> 100 | P33: BASIC HITS: | X33: =Sheet!Y32 -> 2 | AC33: AGL MOD: | AI33: =Sheet!I35 -> 2
A36: STRENGTH: | H36: =Sheet!AA35 -> 11 | P36: ENDURANCE: | X36: =Sheet!K38 -> 11
A39: AGILITY: | G39: =Sheet!AA38 -> 13 | N39: INTELLIGENCE: | X39: =Sheet!K41 -> 11
A42: CHARISMA: | H42: =Sheet!AA41 -> 11 | L42: REACTIONS FROM: GOOD: | AA42: =Sheet!Q50 -> 0 | AE42: EVIL: | AI42: =AA42*-1 -> 0
A45: ="HIT MOD: ("&Sheet!C44&") x ("&Sheet!K44&") x ("&Sheet!S44&") x ("&Sheet!AA44&") = "&Sheet!G47 -> HIT MOD: (1) x (1) x (1.3) x (1) = 1.3 | AA45: HIT POINTS: | AH45: ="("&Sheet!W47&")" -> (3)
A48: DMG MOD: | G48: =Sheet!K53 -> 1 | V48: HEALING RATE: | AF48: =Sheet!Y53 -> 0.5
A51: ACCURACY: | H51: =Sheet!K56 -> 1 | Y51: POWER: | AF51: ="("&Sheet!Y56&")" -> (46)
A54: CARRYING CAPACITY: | M54: =Sheet!H59&" lbs" -> 122 lbs | X54: BASIC HTH: | AF54: =Sheet!AB59 -> 1d4
A57: MOVE RATES: | I57: =Sheet!I62&" in/turn" -> 35 in/turn | S57: =Sheet!Q62 -> 0 | AC57: =Sheet!Y62 -> 0
A60: DET. HIDDEN: | H60: =Sheet!K65&"%" -> 8% | W60: DET. DANGER: | AF60: =Sheet!AA65&"%" -> 12%
A63: INVENTING POINTS: | K63: =Sheet!K68 -> 1.1 | T63: CASH: $
A66: INVENTING: | G66: ="("&Sheet!AA68&"%)" -> (33%)
A70: ORIGIN AND BACKGROUND:
A77: LEGAL STATUS:
A80: (SECURITY CLEARANCE= )
A83: OTHER INFORMATION:

Sheet Stat
A1: 1 | B1: 2 | C1: 3 | D1: 4 | E1: 5 | F1: 6 | G1: 7 | H1: 8 | I1: 9 | J1: 10 | K1: 11 | L1: 12 | M1: 13
D2: STR | E2: END | F2: AGL | G2: INT | H2: END HR | I2: AGL DMG | J2: AGL ACC | K2: INT DMG | L2: Det Hid | M2: Det Dan
A3: 0 | C3: 0 | D3: 0.2 | E3: 0.1 | F3: 0.1 | G3: 1 | H3: 0.08 | I3: -3 | J3: -8 | K3: -- | L3: -- | M3: 30
A4: 1 | B4: - | C4: 2 | D4: =D3+0.2 -> 0.4 | E4: 0.2 | F4: 0.2 | G4: 0.7 | H4: 0.09 | I4: -2 | J4: -6 | K4: -2 | L4: 2 | M4: 9
A5: 3 | B5: - | C5: 5 | D5: =D4+0.2 -> 0.6 | E5: 0.4 | F5: 0.4 | G5: =G4+0.1 -> 0.8 | H5: 0.1 | I5: -1 | J5: -4 | K5: -1 | L5: =L4+2 -> 4 | M5: 10
A6: 6 | B6: - | C6: =A6+2 -> 8 | D6: 0.8 | E6: 0.6 | F6: 0.7 | G6: =G5+0.1 -> 0.9 | H6: 0.2 | I6: 0 | J6: -2 | K6: -1 | L6: =L5+2 -> 6 | M6: 11
A7: =C6+1 -> 9 | B7: - | C7: 11 | D7: 1 | E7: 1 | F7: =F6+0.3 -> 1 | G7: 1 | H7: 0.25 | I7: 0 | J7: 0 | K7: 0 | L7: 8 | M7: 12
A8: 12 | B8: - | C8: 14 | D8: 1.2 | E8: =E7+0.4 -> 1.4 | F8: =F7+0.3 -> 1.3 | G8: 1.1 | H8: 0.3 | I8: 1 | J8: 1 | K8: 0 | L8: 10 | M8: =M7+2 -> 14
A9: 15 | B9: - | C9: 17 | D9: 1.4 | E9: =E8+0.4 -> 1.8 | F9: 1.6 | G9: 1.2 | H9: =H8+0.1 -> 0.4 | I9: 1 | J9: 2 | K9: 1 | L9: 12 | M9: =M8+2 -> 16
A10: 18 | B10: - | C10: 20 | D10: 1.6 | E10: 2.2 | F10: 1.9 | G10: 1.3 | H10: =H9+0.1 -> 0.5 | I10: 2 | J10: 3 | K10: 1 | L10: 14 | M10: 18
A11: 21 | B11: - | C11: 23 | D11: 1.8 | E11: 2.6 | F11: 2.2 | G11: 1.4 | H11: 0.6 | I11: 2 | J11: 4 | K11: 2 | L11: 16 | M11: 20
A12: 24 | B12: - | C12: 26 | D12: 2 | E12: 3 | F12: 2.5 | G12: 1.5 | H12: 0.7 | I12: 3 | J12: 4 | K12: 2 | L12: 18 | M12: 22
A13: 27 | B13: - | C13: 29 | D13: 2.2 | E13: 3.4 | F13: 2.8 | G13: 1.6 | H13: 0.8 | I13: 3 | J13: 5 | K13: 3 | L13: 20 | M13: 24
A14: 30 | B14: - | C14: 32 | D14: 2.4 | E14: 3.8 | F14: 3.1 | G14: 1.7 | H14: 0.9 | I14: 4 | J14: 5 | K14: 3 | L14: 22 | M14: 26
A15: 33 | B15: - | C15: 35 | D15: 2.6 | E15: 4.2 | F15: 3.4 | G15: 1.8 | H15: 1 | I15: 4 | J15: 6 | K15: 4 | L15: 24 | M15: 28
A16: 36 | B16: - | C16: 38 | D16: 2.8 | E16: 4.6 | F16: 3.7 | G16: 1.9 | H16: 1.1 | I16: 5 | J16: 6 | K16: 4 | L16: 26 | M16: 30
A17: 39 | B17: - | C17: 41 | D17: 3 | E17: 5 | F17: 4 | G17: 2 | H17: 1.2 | I17: 5 | J17: 6 | K17: 5 | L17: 28 | M17: 32
A18: 42 | B18: - | C18: 44 | D18: 3.2 | E18: 5.4 | F18: 4.3 | G18: 2.1 | H18: 1.3 | I18: 6 | J18: 7 | K18: 5 | L18: 30 | M18: 34
A19: 45 | B19: - | C19: 47 | D19: 3.4 | E19: 5.8 | F19: 4.6 | G19: 2.2 | H19: 1.4 | I19: 6 | J19: 7 | K19: 6 | L19: 32 | M19: 36
A20: 48 | B20: - | C20: 50 | D20: 3.6 | E20: 6.2 | F20: 4.9 | G20: 2.3 | H20: 1.5 | I20: 7 | J20: 8 | K20: 6 | L20: 34 | M20: 38
A21: 51 | B21: - | C21: 53 | D21: 3.8 | E21: 6.6 | F21: 5.2 | G21: 2.4 | H21: 1.6 | I21: 7 | J21: 8 | K21: 7 | L21: 36 | M21: 40
A22: 54 | B22: - | C22: 56 | D22: 4 | E22: 7 | F22: 5.5 | G22: 2.5 | H22: 1.7 | I22: 8 | J22: 8 | K22: 7 | L22: 38 | M22: 42
A23: 57 | B23: - | C23: 59 | D23: 4.2 | E23: 7.4 | F23: 5.8 | G23: 2.6 | H23: 1.8 | I23: 8 | J23: 9 | K23: 8 | L23: 40 | M23: 44
A24: 60 | B24: - | C24: 62 | D24: 4.4 | E24: 7.8 | F24: 6.1 | G24: 2.7 | H24: 1.9 | I24: 9 | J24: 9 | K24: 8 | L24: 42 | M24: 46
A25: 63 | B25: - | C25: 65 | D25: 4.6 | E25: 8.2 | F25: 6.4 | G25: 2.8 | H25: 2 | I25: 9 | J25: 10 | K25: 9 | L25: 44 | M25: 48
A26: 66 | B26: - | C26: 68 | D26: 4.8 | E26: 8.6 | F26: 6.7 | G26: 2.9 | H26: 2.1 | I26: 10 | J26: 10 | K26: 9 | L26: 46 | M26: 50
A27: 69 | B27: - | C27: 71 | D27: 5 | E27: 9 | F27: 7 | G27: 3 | H27: 2.2 | I27: 10 | J27: 10 | K27: 10 | L27: 48 | M27: 52
A28: 72 | B28: - | C28: 74 | D28: 5.2 | E28: 9.4 | F28: 7.3 | G28: 3.1 | H28: 2.3 | I28: 11 | J28: 11 | K28: 10 | L28: 50 | M28: 54
A29: 75 | B29: - | C29: 77 | D29: 5.4 | E29: 9.8 | F29: 7.6 | G29: 3.2 | H29: 2.4 | I29: 11 | J29: 11 | K29: 11 | L29: 52 | M29: 56
A30: 78 | B30: - | C30: 80 | D30: 5.6 | E30: 10.2 | F30: 7.9 | G30: 3.3 | H30: 2.5 | I30: 12 | J30: 12 | K30: 11 | L30: 54 | M30: 58
A31: 81 | B31: - | C31: 83 | D31: 5.8 | E31: 10.6 | F31: 8.2 | G31: 3.4 | H31: 2.6 | I31: 12 | J31: 12 | K31: 12 | L31: 56 | M31: 60
A32: 84 | B32: - | C32: 86 | D32: 6 | E32: 11 | F32: 8.5 | G32: 3.5 | H32: 2.7 | I32: 13 | J32: 12 | K32: 12 | L32: 58 | M32: 62
A33: 87 | B33: - | C33: 89 | D33: =D32+0.2 -> 6.2 | E33: 11.4 | F33: 8.8 | G33: 3.6 | H33: 2.8 | I33: 13 | J33: 13 | K33: 13 | L33: 60 | M33: 64
A34: =C33+1 -> 90 | B34: - | C34: =A34+2 -> 92 | D34: =D33+0.2 -> 6.4 | E34: 11.8 | F34: 9.1 | G34: 3.7 | H34: 2.9 | I34: 14 | J34: 13 | K34: 13 | L34: 62 | M34: 66
A35: =C34+1 -> 93 | B35: - | C35: =A35+2 -> 95 | D35: =D34+0.2 -> 6.6 | E35: 12.2 | F35: 9.4 | G35: 3.8 | H35: 3 | I35: 14 | J35: 14 | K35: 14 | L35: 64 | M35: 68
A36: 96 | B36: - | C36: 98 | D36: 6.8 | E36: 12.6 | F36: 9.7 | G36: 3.9 | H36: 3.1 | I36: 15 | J36: 14 | K36: 14 | L36: 66 | M36: 70
A37: 99 | B37: - | C37: 101 | D37: 7 | E37: 13 | F37: 10 | G37: 4 | H37: 3.2 | I37: 15 | J37: 14 | K37: 15 | L37: 68 | M37: 72
A38: 102 | B38: - | C38: 104 | D38: 7.2 | E38: 13.4 | F38: 10.3 | G38: 4.1 | H38: 3.3 | I38: 16 | J38: 15 | K38: 15 | L38: 70 | M38: 74
A39: 105 | B39: - | C39: 107 | D39: 7.4 | E39: 13.8 | F39: 10.6 | G39: 4.2 | H39: 3.4 | I39: 16 | J39: 15 | K39: 16 | L39: 72 | M39: 76
A40: 108 | B40: - | C40: 110 | D40: 7.6 | E40: 14.2 | F40: 10.9 | G40: 4.3 | H40: 3.5 | I40: 17 | J40: 16 | K40: 16 | L40: 74 | M40: 78
A41: 111 | B41: - | C41: 113 | D41: 7.8 | E41: 14.6 | F41: 11.2 | G41: 4.4 | H41: 3.6 | I41: 17 | J41: 16 | K41: 17 | L41: 76 | M41: 80
A42: 114 | B42: - | C42: 116 | D42: 8 | E42: 15 | F42: 11.5 | G42: 4.5 | H42: 3.7 | I42: 18 | J42: 16 | K42: 17 | L42: 78 | M42: 82
A43: 117 | B43: - | C43: 119 | D43: 8.2 | E43: 15.4 | F43: 11.8 | G43: 4.6 | H43: 3.8 | I43: 18 | J43: 17 | K43: 18 | L43: 80 | M43: 84
A44: 120 | B44: - | C44: 122 | D44: 8.4 | E44: 15.8 | F44: 12.1 | G44: 4.7 | H44: 3.9 | I44: 19 | J44: 17 | K44: 18 | L44: 82 | M44: 86
A45: 123 | B45: - | C45: 125 | D45: 8.6 | E45: 16.2 | F45: 12.4 | G45: 4.8 | H45: 4 | I45: 19 | J45: 18 | K45: 19 | L45: 84 | M45: 88
A46: 126 | B46: - | C46: 128 | D46: 8.8 | E46: 16.6 | F46: 12.7 | G46: 4.9 | H46: 4.1 | I46: 20 | J46: 18 | K46: 19 | L46: 86 | M46: 90
A47: 129 | B47: - | C47: 131 | D47: 9 | E47: 17 | F47: 13 | G47: 5 | H47: 4.2 | I47: 20 | J47: 18 | K47: 20 | L47: 88 | M47: 92
A48: 132 | B48: - | C48: 134 | D48: 9.2 | E48: 17.4 | F48: 13.3 | G48: 5.1 | H48: 4.3 | I48: 21 | J48: 19 | K48: 20 | L48: 90 | M48: 94
A49: 135 | B49: - | C49: 137 | D49: 9.4 | E49: 17.8 | F49: 13.6 | G49: 5.2 | H49: 4.4 | I49: 21 | J49: 19 | K49: 21 | L49: 92 | M49: 96
A50: 138 | B50: - | C50: 140 | D50: 9.6 | E50: 18.2 | F50: 13.9 | G50: 5.3 | H50: 4.5 | I50: 22 | J50: 20 | K50: 21 | L50: 94 | M50: 98
A51: 141 | B51: - | C51: 143 | D51: 9.8 | E51: 18.6 | F51: 14.2 | G51: 5.4 | H51: 4.6 | I51: 22 | J51: 20 | K51: 22 | L51: 96 | M51: 100
A52: 144 | B52: - | C52: 146 | D52: 10 | E52: 19 | F52: 14.5 | G52: 5.5 | H52: 4.7 | I52: 23 | J52: 20 | K52: 22 | L52: 98 | M52: 102
A53: 147 | B53: - | C53: 149 | D53: 10.2 | E53: 19.4 | F53: 14.8 | G53: 5.6 | H53: 4.8 | I53: 23 | J53: 21 | K53: 23 | L53: 100 | M53: 104
A54: 150 | B54: - | C54: 152 | D54: 10.4 | E54: 19.8 | F54: 15.1 | G54: 5.7 | H54: 4.9 | I54: 24 | J54: 21 | K54: 23 | L54: 102 | M54: 106
A55: 153 | B55: - | C55: 155 | D55: 10.6 | E55: 20.2 | F55: 15.4 | G55: 5.8 | H55: 5 | I55: 24 | J55: 22 | K55: 24 | L55: 104 | M55: 108
A56: 156 | B56: - | C56: 158 | D56: 10.8 | E56: 20.6 | F56: 15.7 | G56: 5.9 | H56: 5.1 | I56: 25 | J56: 22 | K56: 24 | L56: 106 | M56: 110
A57: 159 | B57: - | C57: 161 | D57: 11 | E57: 21 | F57: 16 | G57: 6 | H57: 5.2 | I57: 25 | J57: 22 | K57: 25 | L57: 108 | M57: 112
A58: 162 | B58: - | C58: 164 | D58: 11.2 | E58: 21.4 | F58: 16.3 | G58: 6.1 | H58: 5.3 | I58: 26 | J58: 23 | K58: 25 | L58: 110 | M58: 114
A59: 165 | B59: - | C59: 167 | D59: 11.4 | E59: 21.8 | F59: 16.6 | G59: 6.2 | H59: 5.4 | I59: 26 | J59: 23 | K59: 26 | L59: 112 | M59: 116
A60: 168 | B60: - | C60: 170 | D60: 11.6 | E60: 22.2 | F60: 16.9 | G60: 6.3 | H60: 5.5 | I60: 27 | J60: 24 | K60: 26 | L60: 114 | M60: 118
A61: 171 | B61: - | C61: 173 | D61: 11.8 | E61: 22.6 | F61: 17.2 | G61: 6.4 | H61: 5.6 | I61: 27 | J61: 24 | K61: 27 | L61: 116 | M61: 120
A62: 174 | B62: - | C62: 176 | D62: 12 | E62: 23 | F62: 17.5 | G62: 6.5 | H62: 5.7 | I62: 28 | J62: 24 | K62: 27 | L62: 118 | M62: 122
A63: =C62+1 -> 177 | B63: - | C63: =A63+2 -> 179 | D63: 12.2 | E63: 23.4 | F63: 17.8 | G63: 6.6 | H63: 5.8 | I63: 28 | J63: 25 | K63: 28 | L63: 120 | M63: 124
A64: 180 | B64: - | C64: 182 | D64: 12.4 | E64: 23.8 | F64: 18.1 | G64: 6.7 | H64: 5.9 | I64: 29 | J64: 25 | K64: 28 | L64: 122 | M64: 126
A65: 183 | B65: - | C65: 185 | D65: 12.6 | E65: 24.2 | F65: 18.4 | G65: 6.8 | H65: 6 | I65: 29 | J65: 26 | K65: 29 | L65: 124 | M65: 128
A66: 186 | B66: - | C66: 188 | D66: 12.8 | E66: 24.6 | F66: 18.7 | G66: 6.9 | H66: 6.1 | I66: 30 | J66: 26 | K66: 29 | L66: 126 | M66: 130
A67: 189 | B67: - | C67: 191 | D67: 13 | E67: 25 | F67: 19 | G67: 7 | H67: 6.2 | I67: 30 | J67: 26 | K67: 30 | L67: 128 | M67: 132
A68: 192 | B68: - | C68: 194 | D68: 13.2 | E68: 25.4 | F68: 19.3 | G68: 7.1 | H68: 6.3 | I68: 31 | J68: 27 | K68: 30 | L68: 130 | M68: 134
A69: 195 | B69: - | C69: 197 | D69: 13.4 | E69: 25.8 | F69: 19.6 | G69: 7.2 | H69: 6.4 | I69: 31 | J69: 27 | K69: 31 | L69: 132 | M69: 136
A70: 198 | B70: - | C70: 200 | D70: 13.6 | E70: 26.2 | F70: 19.9 | G70: =G69+0.1 -> 7.3 | H70: 6.5 | I70: 32 | J70: 28 | K70: 31 | L70: =L69+2 -> 134 | M70: 138
A71: =C70+1 -> 201 | B71: - | C71: =A71+2 -> 203 | D71: 13.8 | E71: 26.6 | F71: 20.2 | G71: =G70+0.1 -> 7.4 | H71: 6.6 | I71: 32 | J71: 28 | K71: 31 | L71: =L70+2 -> 136 | M71: 140
A72: 204 | B72: - | C72: 206 | D72: 14 | E72: 27 | F72: =F71+0.3 -> 20.5 | G72: 7.5 | H72: 6.7 | I72: 32 | J72: 28 | K72: 31 | L72: 138 | M72: 142
A73: 207 | B73: - | C73: 209 | D73: 14.2 | E73: =E72+0.4 -> 27.4 | F73: 20.8 | G73: 7.6 | H73: 6.8 | I73: 32 | J73: 28 | K73: 31 | L73: 140 | M73: 144
A74: 210 | B74: - | C74: 212 | D74: 14.4 | E74: 27.8 | F74: 21.1 | G74: 7.7 | H74: 6.9 | I74: 32 | J74: 28 | K74: 31 | L74: 142 | M74: 146
A75: 213 | B75: - | C75: 215 | D75: 14.6 | E75: 28.2 | F75: 21.4 | G75: 7.8 | H75: 7 | I75: 32 | J75: 28 | K75: 31 | L75: 144 | M75: 148
A76: 216 | B76: - | C76: 218 | D76: 14.8 | E76: 28.6 | F76: 21.7 | G76: 7.9 | H76: 7.1 | I76: 32 | J76: 28 | K76: 31 | L76: 146 | M76: 150
A77: 219 | B77: - | C77: 221 | D77: 15 | E77: 29 | F77: 22 | G77: 8 | H77: 7.2 | I77: 32 | J77: 28 | K77: 31 | L77: 148 | M77: 152
A78: 222 | B78: - | C78: 224 | D78: 15.2 | E78: 29.4 | F78: 22.3 | G78: 8.1 | H78: 7.3 | I78: 32 | J78: 28 | K78: 31 | L78: 150 | M78: 154
A79: 225 | B79: - | C79: 227 | D79: 15.4 | E79: 29.8 | F79: 22.6 | G79: 8.2 | H79: 7.4 | I79: 32 | J79: 28 | K79: 31 | L79: 152 | M79: 156
A80: 228 | B80: - | C80: 230 | D80: 15.6 | E80: 30.2 | F80: 22.9 | G80: 8.3 | H80: 7.5 | I80: 32 | J80: 28 | K80: 31 | L80: 154 | M80: 158
A81: 231 | B81: - | C81: 233 | D81: 15.8 | E81: 30.6 | F81: 23.2 | G81: 8.4 | H81: 7.6 | I81: 32 | J81: 28 | K81: 31 | L81: 156 | M81: 160
A82: =C81+1 -> 234 | B82: - | C82: =A82+2 -> 236 | D82: 16 | E82: 31 | F82: 23.5 | G82: =G81+0.1 -> 8.5 | H82: 7.7 | I82: 32 | J82: 28 | K82: 31 | L82: =L81+2 -> 158 | M82: 162
A83: 237 | B83: - | C83: 239 | D83: 16.2 | E83: 31.4 | F83: 23.8 | G83: 8.6 | H83: 7.8 | I83: 32 | J83: 28 | K83: 31 | L83: 160 | M83: 164
A84: 240 | B84: - | C84: 242 | D84: 16.4 | E84: 31.8 | F84: 24.1 | G84: 8.7 | H84: 7.9 | I84: 32 | J84: 28 | K84: 31 | L84: 162 | M84: 166
A85: 243 | B85: - | C85: 245 | D85: 16.6 | E85: 32.2 | F85: 24.4 | G85: 8.8 | H85: 8 | I85: 32 | J85: 28 | K85: 31 | L85: 164 | M85: 168
A86: 246 | B86: - | C86: 248 | D86: 16.8 | E86: 32.6 | F86: 24.7 | G86: 8.9 | H86: 8.1 | I86: 32 | J86: 28 | K86: 31 | L86: 166 | M86: 170
A87: 249 | B87: - | C87: 251 | D87: 17 | E87: 33 | F87: 25 | G87: 9 | H87: 8.2 | I87: 32 | J87: 28 | K87: 31 | L87: 168 | M87: 172

Sheet Cha
A1: 1 | B1: 2 | C1: 3 | D1: 4 | E1: 5 | I1: 1 | J1: 2
A2: 0 | C2: 0 | D2: -6 | E2: =D2*-1 -> 6 | I2: G | J2: 1 | K2: GOOD
A3: 1 | B3: - | C3: 2 | D3: -6 | E3: =D3*-1 -> 6 | I3: E | J3: -1 | K3: EVIL
A4: 3 | B4: - | C4: 5 | D4: -4 | E4: 4 | I4: GOOD | J4: 1
A5: 6 | B5: - | C5: =A5+2 -> 8 | D5: -2 | E5: 2 | I5: EVIL | J5: -1
A6: =C5+1 -> 9 | B6: - | C6: =A6+2 -> 11 | D6: 0 | E6: 0 | I6: M | K6: MALE
A7: 12 | B7: - | C7: =A7+2 -> 14 | D7: 1 | E7: -1 | I7: F | K7: FEMALE
A8: 15 | B8: - | C8: =A8+2 -> 17 | D8: 2 | E8: -2
A9: 18 | B9: - | C9: =A9+2 -> 20 | D9: 3 | E9: -3
A10: 21 | B10: - | C10: 25 | D10: =D9+1 -> 4 | E10: -4
A11: 26 | B11: - | C11: =C10+5 -> 30 | D11: 5 | E11: -5
A12: 31 | B12: - | C12: =C11+5 -> 35 | D12: 6 | E12: -6
A13: 36 | B13: - | C13: 40 | D13: 7 | E13: -7
A14: 41 | B14: - | C14: 45 | D14: 8 | E14: -8
A15: 46 | B15: - | C15: 50 | D15: 9 | E15: -9
A16: 51 | B16: - | C16: 55 | D16: 10 | E16: -10
A17: 56 | B17: - | C17: 60 | D17: 11 | E17: -11
A18: 61 | B18: - | C18: 65 | D18: 12 | E18: -12
A19: 66 | B19: - | C19: 70 | D19: 13 | E19: -13
A20: 71 | B20: - | C20: 75 | D20: 14 | E20: -14
A21: 76 | B21: - | C21: 80 | D21: 15 | E21: -15
A22: 81 | B22: - | C22: 85 | D22: 16 | E22: -16
A23: 86 | B23: - | C23: 90 | D23: 17 | E23: -17
A24: =C23+1 -> 91 | B24: - | C24: 95 | D24: =D23+1 -> 18 | E24: =D24*-1 -> -18
A25: 96 | B25: - | C25: 100 | D25: 19 | E25: -19
A26: 101 | B26: - | C26: 105 | D26: 20 | E26: -20
A27: 106 | B27: - | C27: 110 | D27: 21 | E27: -21
A28: 111 | B28: - | C28: 115 | D28: 22 | E28: -22
A29: 116 | B29: - | C29: 120 | D29: 23 | E29: -23
A30: 121 | B30: - | C30: 125 | D30: 24 | E30: -24
A31: 126 | B31: - | C31: 130 | D31: 25 | E31: -25
A32: 131 | B32: - | C32: 135 | D32: 26 | E32: -26
A33: 136 | B33: - | C33: 140 | D33: 27 | E33: -27
A34: 141 | B34: - | C34: 145 | D34: 28 | E34: -28
A35: 146 | B35: - | C35: 150 | D35: 29 | E35: -29
A36: 151 | B36: - | C36: 155 | D36: 30 | E36: -30
A37: 156 | B37: - | C37: 160 | D37: 31 | E37: -31
A38: 161 | B38: - | C38: 165 | D38: 32 | E38: -32
A39: 166 | B39: - | C39: 170 | D39: 33 | E39: -33
A40: 171 | B40: - | C40: 175 | D40: 34 | E40: -34
A41: 176 | B41: - | C41: 180 | D41: 35 | E41: -35
A42: 181 | B42: - | C42: 185 | D42: 36 | E42: -36
A43: 186 | B43: - | C43: 190 | D43: 37 | E43: -37
A44: 191 | B44: - | C44: 195 | D44: 38 | E44: -38
A45: 196 | B45: - | C45: 200 | D45: 39 | E45: -39

Sheet HtH
A1: 1 | B1: 2 | C1: 3 | D1: 4 | E1: 5
D2: AGL Mod | E2: Basic HtH | H2: 1 | I2: M | K2: M | L2: 150 | M2: 220
A3: 0 | B3: to | C3: 30 | D3: 8 | E3: 1 | H3: =1+H2 -> 2 | I3: M | K3: F | L3: 100 | M3: 150
A4: =C3+1 -> 31 | B4: to | C4: =C3*2 -> 60 | D4: 4 | E4: 1d2 | H4: =1+H3 -> 3 | I4: M
A5: =C4+1 -> 61 | B5: to | C5: =C4*2 -> 120 | D5: 2 | E5: 1d3 | H5: 4 | I5: F
A6: 121 | B6: to | C6: 240 | D6: 0 | E6: 1d4 | H6: 5 | I6: M
A7: 241 | B7: to | C7: 480 | D7: -2 | E7: 1d6 | H7: 6 | I7: M
A8: 481 | B8: to | C8: 960 | D8: =D7-2 -> -4 | E8: 1d8 | H8: 7 | I8: M
A9: 961 | B9: to | C9: 1920 | D9: =D8-2 -> -6 | E9: 1d10 | H9: 8 | I9: F
A10: 1921 | B10: to | C10: 3840 | D10: -8 | E10: 1d12 | H10: 9 | I10: M
A11: 3841 | B11: to | C11: 7680 | D11: -10 | E11: 2d8 | H11: 10 | I11: M
A12: 7681 | B12: to | C12: 15360 | D12: -12 | E12: 2d10
A13: 15361 | B13: to | C13: 30720 | D13: -14 | E13: 3d10
A14: 30721 | B14: to | C14: 61440 | D14: -16 | E14: 4d10
A15: 61441 | B15: to | C15: 122880 | D15: -18 | E15: 5d10
A16: 122881 | B16: to | C16: 245760 | D16: -20 | E16: 6d10
A17: 245761 | B17: to | C17: 491520 | D17: -22 | E17: 7d10
A18: 491521 | B18: to | C18: 983040 | D18: -24 | E18: 8d10
A19: =C18+1 -> 983041 | B19: to | C19: 1966080 | D19: -26 | E19: 9d10
A20: 1966081 | B20: to | C20: 3932160 | D20: -28 | E20: 10d10
A21: 3932161 | B21: to | C21: 7864320 | D21: -30 | E21: 11d10
A22: 7864321 | B22: to | C22: 15728640 | D22: -32 | E22: 12d10
A23: 15728641 | B23: to | C23: 31457280 | D23: -34 | E23: 13d10
A24: 31457281 | B24: to | C24: 62914560 | D24: -36 | E24: 14d10
A25: =C24+1 -> 62914561 | B25: to | C25: 125829120 | D25: -38 | E25: 14d10
A26: 125829121 | B26: to | C26: 251658240 | D26: -40 | E26: 14d10
A27: 251658241 | B27: to | C27: 503316480 | D27: -42 | E27: 14d10
A28: 503316481 | B28: to | C28: 1006632960 | D28: -44 | E28: 14d10
A29: 1006632961 | B29: to | C29: 2013265920 | D29: -46 | E29: 14d10
A30: 2013265921 | B30: to | C30: 4026531840 | D30: -48 | E30: 14d10
A31: 4026531841 | B31: to | C31: 8053063680 | D31: -50 | E31: 14d10
A32: 8053063681 | B32: to | C32: 16106127360 | D32: -52 | E32: 14d10
A33: 16106127361 | B33: to | C33: 32212254720 | D33: -54 | E33: 14d10
A34: 32212254721 | B34: to | C34: 64424509440 | D34: -56 | E34: 14d10

Sheet Reference Points
A1: STAT | B1: STR | C1: END | D1: AGL | E1: INT | F1: CHA
A2: 100+ | B2: Superman | C2: Superman
A3: 90-99 | B3: Captain Marvel | C3: Captain Marvel
A4: 80-89 | B4: Colossus | C4: Wolverine
A5: 70-79 | B5: Wonder Woman | C5: Wonder Woman
A6: 60-69 | B6: Thing | F6: Galactus
A7: 50-59 | C7: Thing | D7: Superman | F7: Hal Jordan
A8: 40-49 | B8: Spider-Man | C8: Colossus | D8: Spider-man | E8: Mr. Fantastic | F8: Alan Scott
A9: 30-39 | B9: Aquaman | C9: Spider-man | D9: Quicksilver | E9: Batman | F9: Superman
A10: 20-29 | B10: Captain America | C10: Daredevil | D10: Blue Beetle | E10: Riddler | F10: Batman
A11: 12-19 | B11: Most Heroes | C11: Most Heroes | D11: Most Heroes | E11: Most Heroes | F11: Most Heroes
A12: 09-11 | B12: Average Human | C12: Average Human | D12: Average Human | E12: Average Human | F12: Average Human
A13: < 09 | B13: Handicapped | C13: Handicapped | D13: Handicapped | E13: Handicapped | F13: Handicapped
